bitfinex/quotes_ETHUSD_20240731
["timestamp","ask_amount","ask_price","bid_price","bid_amount"]
[1722457611567,0.07715074,3240.6,3240.1,2.637]
[1722457611768,0.0771508,3241.0,3239.7,5.637]
[1722457611971,0.0771508,3241.0,3240.1,3.08626]
[1722457612270,0.0771508,3241.0,3240.1,2.637]
[1722457612635,0.0771508,3241.0,3240.2,3.08622]
[1722457612866,0.0771508,3241.0,3240.1,2.637]
[1722457614375,0.0771508,3241.0,3240.1,5.72332]
[1722457614582,1.0683224,3240.9,3240.1,5.72332]
[1722457614832,0.07714817,3240.8,3240.1,5.72332]
[1722457615856,0.07714818,3241.0,3240.1,2.637]
[1722457616061,1.06832976,3240.9,3239.7,8.72364]
[1722457616262,1.14548173,3240.8,3239.8,3.08659]
[1722457616574,0.07715185,3240.7,3239.9,3.08651]
[1722457616745,1.06837752,3240.7,3239.9,3.08651]
[1722457616950,0.07715082,3241.0,3239.9,3.08651]
[1722457617151,1.06836587,3240.9,3239.9,3.08651]
[1722457617356,20.87551669,3240.8,3239.3,5.72404]
[1722457617551,23.55991206,3240.7,3239.3,5.72399]
[1722457617866,2.14211933,3240.6,3239.5,3.08687]
[1722457618061,1.14553123,3240.5,3239.3,2.637]
[1722457618261,0.07716536,3240.5,3239.7,2.637]
[1722457618478,2.14217433,3240.4,3239.7,2.637]
[1722457618675,1.14560084,3240.3,3239.7,2.637]
[1722457618863,0.07716247,3240.5,3239.7,5.72367]
[1722457619069,2.14218279,3240.4,3239.4,0.2637]
[1722457619262,1.14560756,3240.3,3239.4,0.2637]
[1722457619463,1.14560755,3240.2,3239.4,0.2637]
[1722457619667,0.07716371,3240.2,3239.4,0.2637]
[1722457620284,19.73,3240.1,3239.4,0.2637]
[1722457620591,0.07716731,3240.0,3239.4,0.2637]
[1722457620918,0.07716731,3240.0,3238.9,2.637]
[1722457621193,1.06864527,3239.9,3238.9,2.637]
[1722457621372,2.21971449,3239.8,3238.9,2.637]
[1722457621564,1.15107114,3239.7,3238.9,2.637]
[1722457621779,1.15107114,3239.7,3238.8,3.08753]
[1722457621780,0.62857297,3240.0,3239.3,2.637]
[1722457621985,2.7617401,3240.0,3239.4,0.2637]
[1722457622156,20.35857297,3240.1,3239.5,3.08683]
[1722457622359,20.35857297,3240.1,3239.4,0.2637]
[1722457622360,19.73,3240.1,3239.4,0.2637]
[1722457622582,19.73,3240.1,3239.6,3.08679]
[1722457623307,19.73,3240.1,3239.4,3.35064]
[1722457623308,19.73,3240.1,3239.8,3.08656]
[1722457623619,19.73,3240.1,3239.9,3.08644]
[1722457623897,19.73,3240.1,3240.0,3.08641]
[1722457624101,19.73,3240.1,3240.0,6.17282]
[1722457624398,19.73,3240.6,3240.0,3.08641]
[1722457624589,19.73,3240.6,3240.2,3.08614]
[1722457624787,19.73,3240.9,3240.2,3.08614]
[1722457625005,19.73,3240.9,3240.0,3.08633]
[1722457625006,3.31222636,3240.8,3240.0,3.08633]
[1722457625221,0.07714874,3240.7,3240.0,3.4258286]
[1722457625450,0.70572171,3240.7,3240.0,6.5121886]
[1722457625758,1.0735151,3240.6,3240.0,3.4258386]
[1722457625962,0.70572171,3240.7,3240.0,3.4258386]
[1722457626248,0.62857297,3240.6,3240.0,3.4258386]
[1722457626638,0.70572171,3240.7,3240.0,3.4258686]
[1722457626948,3.31228904,3240.6,3240.1,0.34258686]
[1722457627089,2.68371607,3240.5,3240.0,3.08637]
[1722457627290,0.62857297,3240.6,3240.1,3.08631]
[1722457627491,0.62857297,3240.5,3240.2,3.08621]
[1722457627693,0.62857297,3240.5,3240.3,3.08612]
[1722457627956,0.62857297,3240.6,3240.1,3.08624]
[1722457628090,0.62857297,3240.6,3239.9,3.08642]
[1722457628091,3.31229862,3240.5,3239.9,3.08642]
[1722457628290,2.68372853,3240.4,3239.9,3.9982926]
[1722457628526,3.3123015,3240.3,3240.0,3.08641]
[1722457628728,0.62857297,3240.3,3240.0,3.08641]
[1722457629160,0.62857297,3240.3,3240.1,3.08632]
[1722457629452,19.73,3240.2,3240.1,3.08632]
[1722457629590,19.73,3240.2,3240.1,3.79477926]
[1722457629790,19.73,3240.2,3240.1,9.51809926]
[1722457630316,19.73,3240.2,3240.1,6.88109926]
[1722457630519,20.80344573,3240.2,3240.1,6.88109926]
[1722457630830,19.73,3240.2,3240.1,6.88109926]
[1722457631255,20.8034486,3240.2,3240.1,6.88109926]
[1722457631449,19.73,3240.2,3240.1,6.88109926]
[1722457631797,20.80344826,3240.2,3240.1,6.88109926]
[1722457632422,19.73,3240.2,3240.1,6.88109926]
[1722457633036,19.73,3240.2,3240.1,6.79477926]
[1722457633196,3.31229719,3240.2,3239.5,2.637]
[1722457633393,3.31229719,3240.1,3239.5,2.637]
[1722457633709,0.62857297,3239.9,3239.8,3.08654]
[1722457634042,0.62857297,3240.1,3239.9,6.17296]
[1722457634243,1.70212721,3240.1,3239.9,3.703746]
[1722457634447,1.70212721,3240.1,3240.0,3.08641]
[1722457634648,3.31245857,3240.1,3240.0,6.17282]
[1722457634944,0.62857297,3240.3,3240.2,6.17244]
[1722457635145,0.62857297,3240.4,3240.3,6.17226]
[1722457635310,0.62857297,3240.4,3240.3,6.789486]
[1722457635499,3.31209712,3240.5,3240.4,3.08603]
[1722457635693,2.68354578,3240.5,3240.4,3.08603]
[1722457636024,3.62640523,3240.5,3240.4,3.08603]
[1722457636607,2.01627776,3240.5,3240.3,0.617226]
[1722457636932,0.07714754,3240.4,3239.9,0.617296]
[1722457637134,0.63418231,3240.0,3239.7,3.08662]
[1722457637296,0.63418231,3240.1,3240.0,3.08641]
[1722457637502,0.63418231,3240.1,3239.8,3.0]
[1722457637698,0.63418231,3240.0,3239.9,0.608661]
[1722457638122,0.63418231,3240.0,3239.8,3.0]
[1722457638123,1.07352927,3240.0,3239.8,3.0]
[1722457638321,0.63438472,3239.9,3239.8,6.1731]
[1722457638534,1.70791399,3240.0,3239.9,3.08651]
[1722457638735,3.31834397,3240.0,3239.9,3.08651]
[1722457638937,0.63438472,3240.1,3240.0,3.08641]
[1722457639129,0.63438472,3240.2,3240.1,3.08632]
[1722457639329,1.70790252,3240.2,3240.1,3.08632]
[1722457639899,2.6838098,3240.2,3240.1,3.08632]
[1722457640238,2.6838098,3240.2,3240.1,6.17264]
[1722457640411,3.31893703,3240.2,3240.1,6.17264]
[1722457640610,2.68376915,3240.2,3240.1,7.1771381]
[1722457641040,1.70871029,3240.2,3240.1,7.1771381]
[1722457641338,3.31897178,3240.2,3240.1,7.1771381]
[1722457641513,20.36520263,3240.4,3240.2,3.08622]
[1722457641838,2.68351058,3240.3,3240.2,6.17244]
[1722457642043,19.73,3240.4,3240.3,6.17226]
[1722457642408,22.41346367,3240.4,3240.3,3.08613]
[1722457642606,23.04868875,3240.4,3240.3,3.08613]
[1722457642807,23.04878166,3240.4,3240.3,3.08613]
[1722457644272,23.04878166,3240.4,3240.1,1.0044981]
[1722457644273,25.83101181,3240.4,3240.1,3.08632]
[1722457644410,3.31886936,3240.3,3240.1,3.08632]
[1722457644605,3.31886936,3240.3,3240.1,3.08627]
[1722457644828,3.31886936,3240.3,3240.2,3.08622]
[1722457645309,3.31886936,3240.3,3240.1,0.608627]
[1722457645556,3.31909879,3240.2,3240.1,0.608627]
[1722457645711,1.70895137,3240.2,3240.0,3.08633]
[1722457645904,2.68384201,3240.1,3240.0,3.08633]
[1722457646141,0.63553941,3240.2,3240.1,3.08632]
[1722457646346,1.70907362,3240.2,3239.9,6.08643]
[1722457646643,0.63536783,3240.0,3239.9,6.08643]
[1722457646846,1.70890204,3240.0,3239.9,3.0]
[1722457647176,0.63536783,3240.3,3240.1,3.08632]
[1722457647307,3.31906796,3240.3,3240.2,3.08622]
[1722457647521,2.68370013,3240.3,3240.2,8.80944]
[1722457647760,19.73,3240.4,3240.3,6.17226]
[1722457647934,19.73,3240.4,3240.3,7.279126]
[1722457649162,19.73,3240.4,3240.3,10.365256]
[1722457649364,19.73,3240.4,3240.3,7.279126]
[1722457650131,0.63536783,3240.6,3240.3,4.192916]
[1722457650330,0.63536783,3240.5,3240.2,3.08617]
[1722457650588,1.70875243,3240.4,3240.0,3.08634]
[1722457650785,3.31891967,3240.4,3240.2,3.08622]
[1722457650985,3.31891967,3240.3,3240.1,6.08624]
[1722457651131,2.68370382,3240.2,3240.1,3.08624]
[1722457651331,2.24559012,3240.2,3239.9,0.872353]
[1722457651694,1.07348153,3240.3,3240.0,3.08636]
[1722457651695,3.31851351,3240.1,3240.0,3.08636]
[1722457651912,2.0255798,3240.1,3239.4,2.637]
[1722457652198,19.73,3240.0,3239.9,3.08651]
[1722457652486,22.41388312,3240.0,3239.9,3.08651]
[1722457653288,22.41388312,3240.0,3239.9,6.08651]
[1722457653604,23.04855729,3240.0,3239.9,7.267521]
[1722457653934,23.04855729,3240.0,3239.9,4.181011]
[1722457654301,23.04855729,3240.0,3239.9,3.0]
[1722457654587,22.41388312,3240.0,3239.9,3.0]
[1722457654796,22.41388312,3240.0,3239.8,3.0]
[1722457654797,19.73,3240.0,3239.8,3.0]
[1722457655031,19.73,3240.0,3239.9,3.08651]
[1722457655258,20.80355932,3240.0,3239.9,9.17302]
[1722457655389,19.73,3240.0,3239.9,13.890532]
[1722457655720,0.63463297,3240.6,3240.5,6.17188]
[1722457655922,1.70794736,3240.7,3240.6,3.08584]
[1722457656232,0.63463297,3240.7,3240.6,3.08584]
[1722457656531,3.6354422,3240.7,3240.4,3.08599]
[1722457656681,2.68326221,3240.6,3240.5,3.0]
[1722457656888,2.6834993,3240.6,3240.5,3.0]
[1722457657089,2.6834993,3240.6,3240.5,6.694539]
[1722457657283,1.2692681,3240.8,3240.5,6.694539]
[1722457657284,0.6347205,3240.8,3240.7,3.08575]
[1722457657489,1.70800865,3240.8,3240.7,6.1715]
[1722457657686,19.73,3241.0,3240.9,3.08556]
[1722457657891,23.04758306,3241.0,3240.9,6.17112]
[1722457658117,22.41299483,3241.0,3240.9,9.788232]
[1722457658422,20.80320464,3241.0,3240.9,9.788232]
[1722457658622,19.73,3241.0,3240.9,9.788232]
[1722457659198,19.73,3241.0,3240.9,12.425232]
[1722457660089,19.73,3241.0,3240.9,15.510792]
[1722457660520,0.63458823,3241.6,3241.5,3.08499]
[1722457660727,19.73,3242.6,3241.5,3.08499]
[1722457660925,0.63360552,3241.9,3241.6,3.08483]
[1722457661111,3.3161134,3241.8,3241.6,3.08483]
[1722457661323,0.63360552,3241.9,3241.6,3.08483]
[1722457662106,1.70660282,3241.9,3241.6,3.08483]
[1722457662306,0.63360552,3242.1,3241.6,3.08484]
[1722457662511,0.63360552,3242.1,3241.7,3.0]
[1722457662832,0.63360552,3242.1,3241.7,6.08473]
[1722457663032,0.63360552,3242.2,3242.1,3.08442]
[1722457663333,1.89836071,3243.0,3242.1,3.08442]
[1722457663334,0.63360552,3242.8,3242.2,3.08426]
[1722457663490,0.63360552,3242.9,3242.3,3.08416]
[1722457663691,0.63360552,3242.9,3242.4,3.08411]
[1722457663935,0.63360552,3243.0,3242.4,3.08411]
[1722457664100,1.70629126,3243.0,3242.5,3.08396]
[1722457664301,1.07268574,3242.9,3242.5,3.08396]
[1722457664500,0.07709328,3243.0,3242.3,3.08421]
[1722457664700,0.87680951,3243.0,3242.3,3.08421]
[1722457664905,1.0727382,3242.9,3242.3,3.08421]
[1722457665103,0.24320399,3243.0,3242.3,3.08421]
[1722457665521,5.61617836,3244.4,3241.7,6.53879767]
[1722457665522,0.17049223,3243.7,3243.0,2.637]
[1722457665805,0.07708014,3243.7,3243.0,5.72054]
[1722457666228,0.95040828,3244.0,3243.0,5.72048]
[1722457666408,2.75837099,3243.9,3243.0,2.637]
[1722457666618,1.07251631,3243.8,3243.1,3.08346]
[1722457666813,1.07251631,3243.8,3242.7,2.3783]
[1722457666814,0.07708021,3243.7,3242.7,2.3783]
[1722457667023,0.94615803,3244.0,3242.8,6.66894]
[1722457667219,0.07708022,3243.9,3242.9,3.08364]
[1722457667535,0.07708022,3243.9,3242.7,3.0]
[1722457667536,2.292,3243.7,3242.7,3.0]
[1722457667696,0.07708663,3243.6,3242.7,6.08379]
[1722457668229,0.07708663,3243.6,3242.2,2.637]
[1722457668230,2.68181943,3243.5,3242.2,2.637]
[1722457668429,2.75891755,3243.4,3242.2,2.637]
[1722457668644,2.95771119,3243.3,3242.4,3.08407]
[1722457668791,2.95771119,3243.3,3242.5,3.08395]
[1722457668792,0.07709324,3243.2,3242.5,3.08395]
[1722457668998,0.07709324,3243.2,3242.2,5.72124]
[1722457669613,0.07709324,3243.2,3242.3,3.0]
[1722457669973,0.0770933,3243.4,3242.3,3.0]
[1722457670132,1.07277403,3243.3,3242.3,3.0]
[1722457670344,0.0770933,3243.2,3242.2,2.637]
[1722457670893,1.07283921,3243.1,3241.8,2.637]
[1722457671143,2.7593595,3243.0,3241.8,2.637]
[1722457671325,0.27593595,3242.9,3241.8,2.637]
[1722457671613,0.07710622,3242.8,3241.8,2.637]
[1722457671815,19.73,3242.7,3241.8,2.637]
[1722457672011,0.07710635,3242.6,3241.8,2.637]
[1722457672228,0.07710635,3242.6,3242.0,3.08449]
[1722457672537,0.07710635,3242.6,3241.8,2.637]
[1722457672538,19.73,3242.7,3241.9,3.08459]
[1722457672766,0.0770996,3242.6,3241.9,3.08459]
[1722457673041,0.0770996,3242.6,3241.8,5.72166]
[1722457673817,0.0770996,3242.6,3241.8,2.637]
[1722457674141,0.0770996,3242.6,3241.5,3.0]
[1722457674476,0.0770996,3242.6,3241.4,2.637]
[1722457674621,2.487,3242.4,3241.0,5.72239]
[1722457674823,19.80711595,3242.3,3241.0,5.72239]
[1722457675064,0.0771204,3242.2,3241.0,5.72238]
[1722457675256,0.0771204,3242.2,3241.1,3.08536]
[1722457675467,0.0771204,3242.2,3241.2,3.08527]
[1722457675755,0.615833,3242.1,3241.4,3.08507]
[1722457675954,0.615833,3242.1,3241.5,3.08498]
[1722457676256,19.73,3242.3,3241.6,6.16963]
[1722457676645,19.73,3242.3,3241.4,2.637]
[1722457676832,19.73,3242.3,3241.6,3.0848]
[1722457677030,19.73,3242.3,3241.7,3.0]
[1722457677241,19.73,3242.8,3241.7,6.0848]
[1722457677543,0.07711146,3242.7,3241.8,3.08469]
[1722457677743,0.07711146,3242.7,3241.7,3.0]
[1722457678129,0.07711146,3242.7,3241.8,3.08468]
[1722457678341,0.07711146,3242.7,3241.8,3.08464]
[1722457678518,0.07711146,3242.7,3241.8,3.08463]
[1722457678720,0.07711146,3242.7,3242.0,3.08449]
[1722457678964,0.07711146,3242.7,3241.8,3.08463]
[1722457679132,0.07711146,3242.7,3242.0,3.0845]
[1722457679856,0.07711146,3242.7,3241.8,3.08463]
[1722457680044,0.07711146,3242.7,3241.9,0.06168536]
[1722457680460,0.07711146,3242.7,3241.7,3.0]
[1722457680634,0.07711146,3242.7,3241.6,3.0]
[1722457681019,0.07711146,3242.7,3241.6,6.08484]
[1722457681226,0.07711146,3242.7,3241.6,3.0]
[1722457681566,0.07711146,3242.7,3241.1,3.08536]
[1722457681731,0.62960126,3242.6,3241.2,3.0]
[1722457681939,0.70672023,3242.5,3241.0,2.637]
[1722457682138,20.35960126,3242.4,3241.0,5.72245]
[1722457682339,2.4822,3242.2,3241.0,2.637]
[1722457682535,1.15026871,3242.1,3240.7,3.08569]
[1722457682724,20.35960126,3242.0,3240.6,2.637]
[1722457682925,0.62960126,3241.8,3240.3,3.08608]
[1722457683230,2.89320126,3241.5,3240.2,2.637]
[1722457683455,0.62960126,3241.2,3239.8,2.637]
[1722457683659,1.68703047,3241.1,3239.8,2.637]
[1722457683842,1.07359885,3241.0,3239.8,2.637]
[1722457684026,1.1507488,3240.9,3239.9,0.2637]
[1722457684231,0.07714995,3240.9,3239.9,0.2637]
[1722457685563,0.07714995,3240.9,3239.8,2.637]
[1722457685770,2.4997,3240.8,3239.8,3.08656]
[1722457685943,0.07715342,3240.7,3240.0,3.08641]
[1722457686384,0.07715342,3241.1,3239.8,6.17309]
[1722457686676,0.70640584,3241.1,3239.9,3.0865]
[1722457686880,0.6290283,3241.2,3240.2,3.0862]
[1722457687081,3.44324246,3241.3,3240.3,0.06171622]
[1722457687082,2.4997,3241.3,3240.3,0.06171622]
[1722457687394,0.07714528,3241.1,3240.0,3.0]
[1722457687690,0.07714528,3241.1,3239.8,5.7236]
[1722457687691,3.3901081,3241.1,3239.9,3.0]
[1722457687888,1.07355768,3241.0,3239.9,3.0]
[1722457688076,0.6290283,3240.8,3239.7,3.0]
[1722457688387,0.7061869,3240.7,3239.4,3.08695]
[1722457688598,0.0771586,3240.7,3239.5,0.572395]
[1722457688766,19.73,3240.6,3239.3,2.637]
[1722457688949,0.07716122,3240.5,3239.6,3.08672]
[1722457689152,0.07716122,3240.5,3239.7,3.08669]
[1722457689606,0.07716122,3240.5,3239.5,3.08688]
[1722457689805,0.07716122,3240.5,3239.7,3.08669]
[1722457689988,19.73,3240.6,3239.9,3.08645]
[1722457690179,19.73,3240.6,3240.0,0.0617224]
[1722457690375,19.73,3240.6,3240.1,3.08626]
[1722457690581,19.73,3240.6,3240.2,0.06172049]
[1722457690899,19.73,3240.6,3240.2,3.14793049]
[1722457691206,19.73,3240.6,3240.3,0.57849305]
[1722457691530,19.73,3240.6,3240.4,3.08603]
[1722457692265,19.73,3240.6,3240.5,3.08594]
[1722457692495,19.73,3241.3,3240.6,3.08584]
[1722457692690,0.07713634,3241.2,3240.3,6.66460305]
[1722457693007,0.07713634,3241.2,3240.4,0.9750773]
[1722457693208,0.07713634,3241.2,3240.3,3.66460305]
[1722457693517,0.07713634,3241.2,3240.4,6.1477314]
[1722457693734,0.07713634,3241.2,3240.4,0.0617114]
[1722457694029,19.73,3241.3,3240.5,3.0]
[1722457694234,0.07713917,3241.2,3240.5,3.06171134]
[1722457695010,0.07713917,3241.2,3240.5,3.73433478]
[1722457695207,0.07713917,3241.2,3240.5,0.73433478]
[1722457695433,0.07713917,3241.2,3240.5,0.67262344]
[1722457695729,0.07713917,3241.2,3240.3,0.06171132]
[1722457695946,0.07713917,3241.2,3240.2,6.08617]
[1722457696741,0.07713917,3241.2,3240.2,3.0]
[1722457696920,0.07713917,3241.2,3240.0,6.08636]
[1722457697821,19.73,3241.1,3240.0,3.0]
[1722457698002,1.15066679,3241.0,3239.5,3.08683]
[1722457698199,2.2968,3240.8,3239.5,3.08683]
[1722457698409,1.15067078,3240.7,3239.3,8.07217]
[1722457698631,19.80716083,3240.7,3239.3,4.9851]
[1722457698836,19.80716083,3240.7,3238.9,5.72441]
[1722457699141,3.31276561,3240.6,3239.0,0.807251]
[1722457699299,3.38993789,3240.5,3239.0,0.807251]
[1722457699633,2.68445475,3240.4,3239.0,0.807251]
[1722457699799,2.68445475,3240.4,3238.7,3.08758]
[1722457699800,2.2968,3240.2,3238.7,3.08758]
[1722457700013,0.07717514,3240.1,3238.8,3.08755]
[1722457700217,2.2968,3240.2,3238.8,3.14924411]
[1722457700425,0.07718014,3240.1,3238.6,3.0877]
[1722457700626,0.07718014,3240.1,3238.6,6.17539]
[1722457700840,0.07718014,3240.1,3238.8,3.08747]
[1722457701044,2.2968,3240.2,3239.0,3.08731]
[1722457701045,0.07717754,3240.0,3239.0,3.08731]
[1722457701219,2.2968,3240.2,3239.4,3.08693]
[1722457701420,2.2968,3240.2,3239.2,3.08709]
[1722457701615,0.07715887,3240.1,3239.4,3.08698]
[1722457701855,0.07715887,3240.1,3239.5,0.308698]
[1722457702757,0.07715887,3240.1,3239.6,3.08679]
[1722457703058,0.07715887,3240.1,3239.5,0.308698]
[1722457703361,0.07715887,3240.1,3239.5,3.395578]
[1722457703864,0.07715887,3240.1,3239.5,0.308698]
[1722457704162,0.07715887,3240.1,3239.7,3.08664]
[1722457704337,1.56763093,3241.4,3239.7,3.08664]
[1722457704338,2.2621,3240.8,3239.7,3.08664]
[1722457704733,2.2621,3240.8,3240.0,3.08636]
[1722457704958,19.80715645,3240.7,3240.0,0.06172516]
[1722457705163,19.80715645,3240.7,3240.2,3.08621]
[1722457705365,8.41059793,3241.5,3240.2,3.08621]
[1722457705366,19.73,3240.6,3240.4,3.08602]
[1722457705523,19.73,3240.6,3240.5,3.08594]
[1722457705724,19.73,3240.6,3240.5,6.17188]
[1722457705953,19.73,3240.6,3240.5,3.08594]
[1722457706265,19.73,3240.6,3240.5,6.480474]
[1722457707574,19.73,3240.6,3240.5,9.480474]
[1722457707780,19.73,3240.6,3240.5,6.394534]
[1722457708077,19.73,3240.6,3240.5,3.308594]
[1722457708570,19.73,3240.6,3240.5,9.480474]
[1722457708977,19.73,3240.6,3240.5,3.308594]
[1722457709173,19.73,3240.6,3240.5,0.308594]
[1722457709468,19.73,3240.6,3240.5,6.394534]
[1722457709669,19.73,3241.4,3240.7,3.08573]
[1722457709872,19.73,3241.4,3240.8,3.08565]
[1722457710058,19.73,3241.4,3240.5,3.308594]
[1722457710264,19.73,3241.4,3240.6,3.78700872]
[1722457710836,0.0771379,3241.3,3240.6,3.78700872]
[1722457711043,19.73,3241.4,3240.5,3.308594]
[1722457711305,0.0771379,3241.3,3240.3,3.08611]
[1722457711479,0.0771379,3241.3,3240.6,3.08578]
[1722457711674,19.73,3241.4,3240.7,3.08574]
[1722457711978,19.73,3241.8,3241.1,3.08531]
[1722457712177,19.73,3241.8,3241.2,3.08522]
[1722457712363,19.73,3241.8,3241.3,3.393702]
[1722457713139,19.73,3241.7,3241.4,3.08502]
[1722457713351,19.73,3242.3,3241.6,3.08489]
[1722457713552,19.73,3242.3,3241.8,3.08469]
[1722457713954,19.73,3242.3,3241.6,3.14656435]
[1722457713955,19.73,3242.3,3241.6,3.14651435]
[1722457714279,19.73,3242.3,3241.4,3.08504]
[1722457714280,0.07711359,3242.2,3241.4,3.08504]
[1722457714451,0.07711359,3242.2,3241.5,3.0]
[1722457714998,0.07711359,3242.2,3241.4,3.0]
[1722457715179,0.07711359,3242.2,3241.4,6.08508]
[1722457715992,0.07711359,3242.2,3241.4,3.0]
[1722457716497,0.07711359,3242.2,3241.4,6.90169145]
[1722457716856,0.07711359,3242.2,3241.4,3.81667145]
[1722457717069,0.07711359,3242.2,3241.4,0.81667145]
[1722457717264,0.07711359,3242.2,3241.4,3.90174145]
[1722457717602,0.07711359,3242.2,3241.5,3.0]
[1722457717905,0.07711359,3242.2,3241.6,3.08482]
[1722457718107,0.6291219,3242.5,3241.7,3.08474]
[1722457718263,0.6291219,3242.7,3241.9,3.08455]
[1722457718461,0.6291219,3242.8,3242.1,3.08434]
[1722457718660,2.8912219,3242.9,3242.2,3.08426]
[1722457718862,0.6291219,3243.0,3242.3,3.08422]
[1722457719068,2.23837861,3243.0,3242.3,3.1459019]
[1722457719268,0.6291219,3243.1,3242.5,3.08403]
[1722457719468,0.6291219,3243.3,3242.5,0.06167639]
[1722457719697,0.07709282,3243.2,3242.4,3.08409]
[1722457719900,0.07709282,3243.2,3242.5,0.06167425]
[1722457720111,0.6291219,3243.3,3242.6,3.08393]
[1722457720403,3.0337219,3243.4,3242.5,0.06167425]
[1722457720631,1.0726677,3243.3,3242.5,0.06167425]
[1722457720762,1.0726677,3243.3,3242.7,3.08381]
[1722457720968,0.07709266,3243.8,3243.0,3.08347]
[1722457721243,0.07709266,3243.8,3242.8,3.392111]
[1722457721244,0.07709266,3243.8,3242.9,0.01561289]
[1722457721520,0.07709266,3243.8,3242.9,3.0]
[1722457721867,0.07709266,3243.8,3242.9,6.08356]
[1722457722179,0.07709266,3243.8,3243.0,0.6391941]
[1722457722990,0.07709266,3243.8,3243.0,3.7227441]
[1722457723171,0.07707995,3244.0,3243.0,3.7227441]
[1722457723821,0.07707995,3244.0,3243.0,0.6391941]
[1722457724408,19.73,3243.9,3243.1,3.08339]
[1722457724717,0.07707995,3243.8,3243.1,0.37225841]
[1722457725110,0.07707995,3243.8,3243.1,3.45570841]
[1722457725511,19.73,3243.9,3243.3,3.0832]
[1722457725685,19.73,3243.9,3243.2,0.06166395]
[1722457725686,19.73,3243.9,3243.4,0.06166033]
[1722457725886,19.73,3244.4,3243.8,3.08273]
[1722457726103,19.73,3244.3,3243.8,3.699297]
[1722457726423,19.73,3244.3,3243.9,0.06164759]
[1722457726798,20.2691219,3245.3,3243.4,3.0]
[1722457726799,2.3058,3244.2,3243.4,3.0]
[1722457726986,2.3828595,3244.2,3242.4,2.3249]
[1722457727190,2.3828595,3244.2,3242.9,3.08356]
[1722457727496,0.23828595,3244.1,3243.0,6.391896]
[1722457727708,0.23828595,3244.1,3243.0,3.308356]
[1722457727709,0.07707903,3244.0,3243.0,3.308356]
[1722457727916,0.07707903,3244.0,3243.0,0.308356]
[1722457728227,19.73,3244.4,3243.3,3.08327]
[1722457728426,21.981,3244.7,3243.4,3.14482575]
[1722457728589,21.981,3244.7,3243.5,3.70587958]
[1722457728788,0.07706721,3244.6,3243.5,3.70587958]
[1722457728989,2.251,3244.7,3243.6,0.06165384]
[1722457729622,0.07706324,3244.6,3243.5,3.25380958]
[1722457729846,0.07706324,3244.6,3243.5,0.62280958]
[1722457730004,0.23280632,3244.5,3243.2,3.0]
[1722457730209,0.07706733,3244.4,3243.2,3.0]
[1722457732869,0.07707392,3244.4,3243.6,2.3645]
[1722457733007,2.2541,3245.6,3244.3,2.631]
[1722457733212,0.07704087,3245.5,3244.4,0.06163269]
[1722457733472,0.07704087,3245.5,3244.5,0.26926327]
[1722457733611,0.07704087,3245.5,3244.6,0.06163269]
[1722457733811,0.07704087,3245.5,3243.9,5.71365]
[1722457734020,0.07704087,3245.5,3244.0,3.0]
[1722457735774,22.81129,3245.4,3243.8,3.0]
[1722457736080,22.81129,3245.4,3243.2,2.3645]
[1722457736081,0.07706751,3245.3,3243.2,2.3645]
[1722457736378,2.4197,3244.9,3243.2,2.3645]
[1722457736542,3.1589275,3244.8,3243.2,2.3645]
[1722457736717,0.07706899,3244.7,3243.2,2.3645]
[1722457737118,3.15906899,3244.7,3243.2,2.3645]
[1722457737364,0.3159069,3244.6,3243.0,3.815356]
[1722457737654,0.07707822,3244.5,3243.0,0.308356]
[1722457737839,19.73,3244.8,3243.3,1.5]
[1722457738018,0.07706394,3244.7,3243.4,3.08311]
[1722457738224,0.07706394,3244.7,3243.6,3.08298]
[1722457738562,0.07706394,3244.7,3243.7,0.0616462]
[1722457738760,0.07705777,3245.3,3243.7,0.0616462]
[1722457738972,2.4197,3245.4,3244.2,6.58933]
[1722457739144,0.07704802,3245.3,3244.3,0.06163842]
[1722457739860,0.07704802,3245.3,3244.1,5.3493]
[1722457740056,0.07704573,3245.8,3244.1,5.43176]
[1722457740268,0.07704537,3245.7,3244.4,3.08221]
[1722457740436,2.4859,3245.9,3244.5,0.3698573]
[1722457740636,2.4859,3245.9,3244.7,3.08192]
[1722457741035,19.8070391,3245.8,3244.8,0.06163128]
[1722457741231,19.8070391,3245.8,3244.5,3.08211]
[1722457741232,0.07703212,3245.7,3244.5,3.08211]
[1722457741476,0.07703212,3245.7,3244.6,3.0]
[1722457741668,0.07703212,3245.7,3244.6,0.3]
[1722457741871,19.73,3245.6,3244.1,3.0825]
[1722457742034,0.07704804,3245.5,3244.2,3.0]
[1722457742442,0.07704804,3245.5,3244.1,3.0]
[1722457742861,0.07704804,3245.5,3244.1,6.0825]
[1722457743135,0.07704804,3245.5,3244.2,0.916505]
[1722457743351,2.3417,3245.4,3243.8,0.31445562]
[1722457743555,1.14412221,3245.3,3243.8,0.31445562]
[1722457743756,0.07705423,3245.2,3243.8,3.39720562]
[1722457744052,0.07705423,3245.2,3243.8,0.31445562]
[1722457744277,0.31892965,3245.2,3243.9,0.33973356]
[1722457744432,0.31892965,3245.2,3243.8,0.31445562]
[1722457744638,20.79712998,3245.1,3243.8,0.31445562]
[1722457744868,1.14419309,3245.0,3243.8,0.31445562]
[1722457745134,0.07706311,3245.0,3243.8,0.31445562]
[1722457745355,0.07706311,3245.0,3243.5,3.0]
[1722457745585,20.79715258,3244.9,3243.5,3.0]
[1722457745759,0.07706309,3244.8,3243.5,3.0]
[1722457745960,19.73,3244.9,3243.5,6.08308]
[1722457745961,0.07706313,3244.7,3243.5,6.08308]
[1722457746184,0.07706313,3244.7,3243.6,0.06165045]
[1722457746361,0.07706301,3244.8,3243.7,3.69733305]
[1722457746563,0.07706301,3244.8,3243.8,0.06164341]
[1722457746791,19.73,3244.9,3243.8,3.14437341]
[1722457746992,19.73,3244.9,3243.9,3.08268]